lending/lending_fUSD_20240401
["ID","MTS","AMOUNT","RATE_DAILY","PERIOD"]
[321181388,1711950632181,-640.18368547,0.000576,6]
[321181389,1711950632192,-1200.0,0.000577,21]
[321181390,1711950632203,-200.0,0.000578,21]
[321181391,1711950632219,-171.24,0.00057857,2]
[321181392,1711950632237,-4906.64534802,0.0005789,2]
[321181393,1711950632248,-2569.28195569,0.00057897,2]
[321181394,1711950632259,-164.88557598,0.00057898,14]
[321181395,1711950632271,-1000.0,0.000579,2]
[321181396,1711950632282,-500.0,0.000579,2]
[321181399,1711950632294,-200.0,0.000579,21]
[321181401,1711950632305,-1305.89917038,0.000579,112]
[321181402,1711950632316,-1620.22842015,0.000579,36]
[321181404,1711950632328,-630.87993092,0.000579,2]
[321181407,1711950632340,-1231.47814005,0.000579,2]
[321181409,1711950632351,-42631.27777234,0.000579,120]
[321181411,1711950632365,-22664.54631966,0.000579,120]
[321181413,1711950632376,-165.82674861,0.000579,120]
[321181415,1711950632387,-2788.44522979,0.000579,58]
[321181417,1711950632398,-246.43828497,0.00057902,120]
[321181419,1711950632409,-803.57,0.0005792,10]
[321181421,1711950632420,-669.64,0.0005792,10]
[321181423,1711950632430,-5536.91681898,0.0005793,60]
[321181434,1711950632651,-757.47619518,0.0005793,60]
[321181436,1711950632665,-2076.32542558,0.0005793,60]
[321181438,1711950632679,-4748.88603663,0.0005793,60]
[321181440,1711950632692,-459.75323735,0.0005793,60]
[321181442,1711950632703,-11103.86148869,0.0005793,60]
[321181444,1711950632726,-1258.00495569,0.0005793,60]
[321181446,1711950632737,-238.14,0.0005797,15]
[321181449,1711950632751,-150.5,0.0005797,15]
[321181450,1711950632762,-150.5,0.0005798,15]
[321181452,1711950632772,-150.5,0.0005798,15]
[321181454,1711950632783,-530.4084113,0.00057988,36]
[321181479,1711950641609,-1101.0112,0.00057897,2]
[321181480,1711950641623,-1419.62385656,0.000579,30]
[321181482,1711950641703,-1047.2,0.000579,30]
[321181486,1711950641716,-277.42557567,0.000579,30]
[321181488,1711950641728,-221.79445648,0.00057902,120]
[321181490,1711950641739,-795.27684746,0.00057988,36]
[321181492,1711950641753,-582.0879367,0.00057988,36]
[321181494,1711950641767,-3041.33319571,0.00057988,36]
[321181512,1711950641888,-1893.38094516,0.00057988,36]
[321181514,1711950641904,-501.59929528,0.00057988,36]
[321181518,1711950641938,-1499.98881129,0.00057988,36]
[321181520,1711950641955,-1244.2237579,0.00057988,36]
[321181521,1711950641968,-1563.5976545,0.00057988,36]
[321181522,1711950641982,-1059.48348166,0.00057988,36]
[321181523,1711950642013,-92398.87273598,0.00057988,36]
[321181524,1711950642024,-35658.23003812,0.00057988,6]
[321181525,1711950642037,-971547.09633841,0.00057988,6]
[321181526,1711950642051,-70026.16300001,0.00057988,6]
[321181527,1711950642065,-1961.568,0.00057988,6]
[321181528,1711950642082,-3259.48918559,0.00057988,6]
[321181529,1711950642124,-1133756.62353371,0.00057988,6]
[321181530,1711950642135,-1894.96241704,0.00057989,4]
[321181531,1711950642146,-333.82243797,0.00057989,4]
[321181532,1711950642159,-42655.75230657,0.0005799,35]
[321181543,1711950642306,-42000.0,0.0005799,20]
[321181546,1711950642364,-6255.95744282,0.0005799,25]
[321181548,1711950642376,-150.5,0.0005799,15]
[321181550,1711950642388,-150.5,0.0005799,15]
[321181552,1711950642401,-205.65687305,0.0005799,90]
[321181554,1711950642413,-193.61731328,0.0005799,7]
[321181556,1711950642424,-193.61731328,0.0005799,7]
[321181558,1711950642436,-150.8,0.0005799,120]
[321181560,1711950642447,-150.8,0.0005799,120]
[321181563,1711950642458,-150.8,0.0005799,120]
[321181566,1711950642472,-150.8,0.0005799,120]
[321181569,1711950642483,-150.8,0.0005799,120]
[321181573,1711950642498,-500.0,0.00057994,120]
[321181575,1711950642510,-500.0,0.00057994,120]
[321181577,1711950642521,-500.0,0.00057994,120]
[321181579,1711950642532,-500.0,0.00057994,120]
[321181582,1711950642544,-500.0,0.00057994,120]
[321181585,1711950642556,-38917.23474622,0.00057995,120]
[321181588,1711950642568,-51410.66875308,0.00057997,2]
[321181591,1711950642579,-154.37861196,0.00057998,2]
[321181593,1711950642591,-372.68865665,0.00057998,2]
[321181595,1711950642602,-205.56886389,0.00057999,120]
[321181597,1711950642629,-306.33902823,0.00057999,120]
[321181599,1711950642641,-500.0,0.00057999,120]
[321181601,1711950642652,-500.0,0.00057999,120]
[321181604,1711950642666,-500.0,0.00057999,120]
[321181605,1711950642680,-423.52,0.00057999,120]
[321181608,1711950642691,-555.79,0.00057999,120]
[321181609,1711950642703,-500.0,0.00057999,120]
[321181612,1711950642716,-500.0,0.00057999,120]
[321181614,1711950642728,-500.0,0.00057999,120]
[321181616,1711950642740,-500.0,0.00057999,120]
[321181618,1711950642752,-537.0,0.00057999,120]
[321181620,1711950642764,-500.0,0.00057999,120]
[321181621,1711950642775,-500.0,0.00057999,120]
[321181623,1711950642791,-500.0,0.00057999,120]
[321181624,1711950642804,-564.78740194,0.00057999,120]
[321181625,1711950642815,-500.0,0.00057999,120]
[321181626,1711950642827,-174.80750488,0.00057999,60]
[321181627,1711950642838,-500.0,0.00057999,120]
[321181628,1711950642850,-500.0,0.00057999,120]
[321181629,1711950642861,-500.0,0.00057999,120]
[321181630,1711950642873,-500.0,0.00057999,120]
[321181631,1711950642885,-500.0,0.00057999,120]
[321181632,1711950642898,-500.0,0.00057999,120]
[321181633,1711950642911,-258.36730228,0.00057999,120]
[321181634,1711950642922,-488.68,0.00057999,120]
[321181635,1711950642933,-500.0,0.00057999,120]
[321181636,1711950642944,-1179.99,0.00057999,120]
[321181637,1711950642956,-528.89,0.00057999,120]
[321181638,1711950642967,-500.0,0.00057999,120]
[321181639,1711950642978,-500.0,0.00057999,120]
[321181640,1711950642990,-500.0,0.00057999,120]
[321181641,1711950643003,-513.41555919,0.00057999,120]
[321181642,1711950643014,-295.41416174,0.00057999,120]
[321181643,1711950643026,-500.0,0.00057999,120]
[321181644,1711950643036,-500.0,0.00057999,120]
[321181645,1711950643048,-500.0,0.00057999,120]
[321181646,1711950643060,-500.0,0.00057999,120]
[321181647,1711950643075,-1606.38,0.00057999,120]
[321181648,1711950643088,-500.0,0.00057999,120]
[321181649,1711950643103,-500.0,0.00057999,120]
[321181650,1711950643116,-500.0,0.00057999,120]
[321181651,1711950643128,-500.0,0.00057999,120]
[321181652,1711950643154,-500.0,0.00057999,120]
[321181653,1711950643168,-500.0,0.00057999,120]
[321181654,1711950643179,-500.0,0.00057999,120]
[321181655,1711950643194,-500.0,0.00057999,120]
[321181656,1711950643210,-500.0,0.00057999,120]
[321181657,1711950643221,-500.0,0.00057999,120]
[321181658,1711950643233,-500.0,0.00057999,120]
[321181659,1711950643244,-679.45,0.00057999,120]
[321181660,1711950643255,-2181.93,0.00057999,120]
[321181661,1711950643266,-1311.82,0.00057999,120]
[321181662,1711950643277,-500.0,0.00057999,120]
[321181664,1711950643289,-500.0,0.00057999,120]
[321181666,1711950643300,-298.76946573,0.00057999,120]
[321181667,1711950643313,-500.0,0.00057999,120]
[321181668,1711950643325,-500.0,0.00057999,120]
[321181669,1711950643337,-500.0,0.00057999,120]
[321181670,1711950643348,-2050.55,0.00057999,120]
[321181671,1711950643359,-500.0,0.00057999,120]
[321181672,1711950643370,-500.0,0.00057999,120]
[321181673,1711950643381,-500.0,0.00057999,120]
[321181674,1711950643392,-500.0,0.00057999,120]
[321181675,1711950643404,-185.24652006,0.00057999,120]
[321181676,1711950643417,-500.0,0.00057999,120]
[321181677,1711950643429,-157.045568,0.00057999,120]
[321181679,1711950643440,-151.0,0.00057999,120]
[321181681,1711950643451,-500.0,0.00057999,120]
[321181683,1711950643463,-5406.88,0.00057999,120]
[321181685,1711950643473,-2222.51,0.00057999,120]
[321181686,1711950643484,-3637.04224075,0.00058,120]
[321181688,1711950643496,-1000.0,0.00058,120]
[321181689,1711950643508,-3419375.94781382,0.00058,15]
[321181690,1711950643525,-208559.53455596,0.00058,15]
[321181691,1711950643539,-47493.13310771,0.00058,15]
[321181692,1711950643553,-1861.060002,0.00058,15]
[321181693,1711950643567,-6917.41766735,0.00058,15]
[321181694,1711950643585,-1550.0,0.00058,15]
[321181695,1711950643602,-871526.14011661,0.00058,15]
[321181696,1711950643615,-282.35679559,0.00058,15]
[321181697,1711950643681,-23781.47925404,0.00058,15]
[321181698,1711950643695,-4308.57999999,0.00058,15]
[321181699,1711950643710,-7143.4,0.00058,15]
[321181700,1711950643729,-3765.18272968,0.00058,15]
[321181703,1711950643743,-923.66263637,0.00058,15]
[321181704,1711950643759,-260.0,0.00058,15]
[321181707,1711950643792,-558.03,0.00057978,10]
[321181709,1711950643804,-1025.51070083,0.00058,15]
[321181710,1711950643818,-957.53705683,0.00058,15]
[321181711,1711950643832,-749.77768731,0.00058,15]
[321181712,1711950643848,-35098.40108,0.00058,15]
[321181713,1711950643862,-14001.8,0.00058,15]
[321181714,1711950643904,-241.88,0.00057978,30]
[321181715,1711950643916,-2615.8187143,0.00058,15]
[321181716,1711950643930,-6954.9,0.00058,15]
[321181717,1711950643944,-25834.40146684,0.00058,15]
[321181718,1711950643963,-7737.42951524,0.00058,15]
[321181719,1711950643987,-10483.49209174,0.00058,15]
[321181720,1711950644000,-303.40720823,0.00058,15]
[321181721,1711950644015,-1645.44379997,0.00058,15]
[321181722,1711950644038,-3036.10029672,0.00058,15]
[321181723,1711950644051,-12397.03430508,0.00058,15]
[321181724,1711950644065,-35073.25000001,0.00058,15]
[321181725,1711950644083,-298.93528006,0.00058,15]
[321181726,1711950644097,-678.06,0.00058,15]
[321181727,1711950644114,-1472306.72844265,0.00058,15]
[321181728,1711950644136,-2078.58212811,0.00058,15]
[321181729,1711950644156,-530.05,0.00058,15]
[321181730,1711950644188,-1711.23266976,0.00058,15]
[321181731,1711950644207,-35057.01,0.00058,15]
[321181754,1711950645618,-495.22529328,0.00042906,4]
[321181757,1711950645632,-305.77999326,0.00042906,4]
[321181759,1711950645645,-72491.38427041,0.00042906,4]
[321181768,1711950645735,-17476.375,0.00042906,4]
[321181770,1711950645818,-2213.42940644,0.00042906,4]
[321181771,1711950645833,-897.221,0.00042906,4]
[321181772,1711950645847,-366.55087896,0.00042906,4]
[321181773,1711950645861,-660.17875593,0.00042906,4]
[321181774,1711950645875,-731.7,0.00042906,4]
[321181775,1711950645943,-6222.97011502,0.00042906,4]
[321181776,1711950646055,-108991.03507556,0.00042906,4]
[321181777,1711950646067,-185.60129005,0.000579,2]
[321181778,1711950646083,-578.16039089,0.00057994,120]
[321181779,1711950646094,-178185.89848065,0.00058,15]
[321181780,1711950646106,-5612.600001,0.00058,15]
[321181781,1711950646125,-3511.165,0.00058,15]
[321181782,1711950646139,-5106.08692689,0.00058,15]
[321181783,1711950646152,-2042.26382404,0.00058,15]
[321181784,1711950646168,-10545.0,0.00058,15]
[321181785,1711950646183,-3488.59156958,0.00058,15]
[321181786,1711950646196,-28105.17687706,0.00058,15]
[321181790,1711950646633,5000.0,0.00042814,120]
[321181793,1711950669130,268.16528232,0.00024,2]
[321181794,1711950846158,22095.34013509,0.0003,2]
[321181795,1711950849399,359.86939231,0.00024,2]
[321181797,1711950867657,277.45582479,0.00024,2]
[321181798,1711950878841,15000.0,0.00042814,120]
[321181803,1711950884164,1633.75781461,0.0002511,2]
[321181805,1711950917418,-155.0,0.00034998,4]
[321181806,1711950917439,-8892.68513685,0.00034999,4]
[321181808,1711950961348,-155.0,0.00034999,4]
[321181809,1711951038511,-155.0,0.00034999,4]
[321181810,1711951038534,-3151.41070183,0.00034999,4]
[321181828,1711951486860,-12199.04121855,0.00034999,4]
[321181831,1711951534315,-1051.56380492,0.00034999,4]
[321181840,1711951763870,-155.0,0.00034998,4]
[321181841,1711951763890,-1401.79529549,0.00034999,4]
[321181842,1711951763909,-478.67280152,0.00035,2]
[321181904,1711951831771,-3266.066548,0.00036444,2]
[321181905,1711951831781,-252.8179403,0.00036628,4]
[321181906,1711951831790,-159.52101062,0.00036898,2]
[321181907,1711951831799,-2292.69004989,0.00036989,2]
[321181908,1711951831811,-8927.38337111,0.0003699,2]
[321181909,1711951831821,-283.2937883,0.00036996,4]
[321181910,1711951831830,-204.18286789,0.00036996,4]
[321181911,1711951831839,-150.0,0.00036997,3]
[321181912,1711951831848,-150.0,0.00036997,2]
[321181913,1711951831857,-276.0,0.00036997,3]
[321181914,1711951831866,-179.73947055,0.00036998,4]
[321181915,1711951831876,-2357.09753971,0.00036998,4]
[321181916,1711951831885,-155.6295641,0.00036998,4]
[321181917,1711951831895,-157.12716268,0.00036998,4]
[321181918,1711951831904,-155.87527883,0.00036998,4]
[321181919,1711951831913,-2000.0,0.00036998,2]
[321181920,1711951831922,-6756.97540802,0.00036998,4]
[321181921,1711951831934,-6956.0343,0.00036998,4]
[321181922,1711951831946,-4635.03001487,0.00036998,4]
[321181938,1711951832308,-13883.33057198,0.00036998,4]
[321181940,1711951832320,-1848.03375308,0.00036998,4]
[321181942,1711951832329,-219.43897485,0.00036998,4]
[321181944,1711951832338,-155.46113651,0.00036998,4]
[321181946,1711951832347,-519.3163752,0.00036998,4]
[321181948,1711951832356,-166.86985156,0.00036998,4]
[321181950,1711951832365,-340.59863762,0.00036998,4]
[321181952,1711951832374,-210.23127118,0.00036998,4]
[321181955,1711951832393,-886.9369555,0.00036998,4]
[321181957,1711951832403,-155.28543617,0.00036998,2]
[321181960,1711951832414,-442.98897175,0.00036998,2]
[321181962,1711951832426,-537.05,0.00036998,2]
[321181964,1711951832439,-864.67559208,0.00036998,2]
[321181966,1711951832448,-155.94829632,0.00036998,4]
[321181968,1711951832457,-554.13177622,0.00036998,2]
[321181975,1711951832514,-730.33461522,0.00036998,2]
[321181977,1711951832524,-758.01360856,0.00036998,2]
[321181979,1711951832535,-1662.85139985,0.00036999,4]
[321181981,1711951832544,-10041.54158958,0.00037,4]
[321181985,1711951832573,-59119.54242382,0.00037,4]
[321181987,1711951832584,-10181.43789081,0.00037,4]
[321182025,1711951837660,-403.99979888,0.00037,4]
[321182027,1711951837672,-1360.44817305,0.00037,4]
[321182029,1711951837683,-486.47867997,0.00037,4]
[321182031,1711951837695,-740.69149251,0.00037,4]
[321182032,1711951837707,-7882.62437655,0.00037,4]
[321182033,1711951837780,-401.49896,0.00037,4]
[321182034,1711951838228,-3618.70813054,0.00037,4]
[321182035,1711951838349,-4042.17307451,0.00037,4]
[321182036,1711951838358,-3033.79076889,0.00037,2]
[321182037,1711951838368,-156.19,0.00037808,2]
[321182038,1711951838377,-156.1,0.00037808,2]
[321182039,1711951838386,-156.53,0.00037808,2]
[321182040,1711951838396,-150.12,0.00038915,2]
[321182041,1711951838408,-988.1914516,0.00039217,2]
[321182042,1711951838420,-878.76,0.00039217,2]
[321182043,1711951838433,-143.8485484,0.00039217,2]
[321182044,1711951838444,-156.96,0.00039313,15]
[321182045,1711951838453,-250.0,0.00039389,112]
[321182046,1711951838462,-150.0,0.00039471,2]
[321182047,1711951838471,-1000.0,0.00039687,2]
[321182048,1711951838481,-1586.5848516,0.00039848,2]
[321182049,1711951838493,-747.8051484,0.00039848,2]
[321182050,1711951838503,-17402.48476348,0.0003999,2]
[321182051,1711951838512,-172.27,0.0003999,2]
[321182052,1711951838522,-554.6523772,0.00039999,31]
[321182054,1711951838532,-5753.24265028,0.0004,4]
[321182056,1711951838541,-186.57307901,0.0004,30]
[321182058,1711951838550,-10473.61447793,0.0004,30]
[321182072,1711951839654,-1499.98153407,0.0004,30]
[321182073,1711951839733,-807.50002,0.0004,30]
[321182074,1711951839746,-12348.63091,0.0004,30]
[321182075,1711951839807,-145296.48566705,0.0004,30]
[321182076,1711951839821,-22080.58499123,0.0004,4]
[321182077,1711951839831,-210.0,0.00040697,5]
[321182078,1711951839840,-343.09,0.00040854,2]
[321182079,1711951839849,-156.96,0.00042052,15]
[321182080,1711951839859,-179.0,0.00042273,2]
[321182081,1711951839868,-250.0,0.00042417,2]
[321182082,1711951839878,-202.12441557,0.00042765,2]
[321182083,1711951839887,-4876.8027688,0.00042805,2]
[321182084,1711951839896,-2663.61287486,0.00042805,2]
[321182085,1711951839906,-279.9,0.00042846,2]
[321182086,1711951839916,-174.05766826,0.00042905,4]
[321182087,1711951839925,-155.62018798,0.00042905,4]
[321182088,1711951839935,-5580.95283091,0.00042905,4]
[321182089,1711951839946,-165.28377532,0.00042905,4]
[321182090,1711951839956,-378.82535548,0.00042905,4]
[321182091,1711951839966,-27149.40486675,0.00042905,4]
[321182092,1711951839976,-12310.75597601,0.00042905,4]
[321182093,1711951839987,-557.37096818,0.00042905,4]
[321182094,1711951839998,-672.71847645,0.00042905,4]
[321182095,1711951840009,-980.29907059,0.00042906,4]
[321182096,1711951840019,-210.44509383,0.00042906,4]
[321182097,1711951840031,-1465.71922469,0.00042906,4]
[321182098,1711951840043,-1200.0,0.00042959,2]
[321182099,1711951840056,-1814.8878875,0.00042981,2]
[321182100,1711951840075,-1572.75867537,0.00042981,2]
[321182101,1711951840086,-221.20888971,0.00042981,2]
[321182102,1711951840098,-368.1910996,0.00042981,2]
[321182103,1711951840110,-1475.32839015,0.00042981,2]
[321182104,1711951840120,-6960.23115968,0.00042981,2]
[321182105,1711951840131,-789.62050342,0.00042981,7]
[321182106,1711951840142,-7955.28684623,0.00042981,7]
[321182107,1711951840153,-12915.06840829,0.00042981,7]
[321182108,1711951840164,-343.09,0.00043118,2]
[321182109,1711951840175,-172.73,0.00043287,2]
[321182110,1711951840187,-656.35,0.00044497,2]
[321182111,1711951840198,-1000.0,0.00044648,2]
[321182112,1711951840208,-156.96,0.00044792,15]
[321182113,1711951840218,-4876.80276876,0.00045149,2]
[321182114,1711951840228,-2663.61287479,0.00045149,2]
[321182115,1711951840238,-736.6,0.00045316,2]
[321182116,1711951840248,-151.34,0.00045316,2]
[321182117,1711951840260,-201.0,0.00045316,2]
[321182118,1711951840270,-343.09,0.00045382,2]
[321182119,1711951840280,-250.0,0.00045393,2]
[321182120,1711951840291,-156.19,0.00045437,2]
[321182121,1711951840302,-447.68,0.00045445,2]
[321182122,1711951840318,-170.75,0.00045574,2]
[321182123,1711951840329,-227.13268491,0.00045652,2]
[321182124,1711951840342,-17675.16731509,0.00045652,2]
[321182125,1711951840352,-170.75,0.00045699,2]
[321182126,1711951840363,-170.75,0.00045824,2]
[321182127,1711951840372,-170.75,0.00045949,2]
[321182128,1711951840382,-170.75,0.00046074,2]
[321182129,1711951840392,-170.75,0.00046199,2]
[321182130,1711951840403,-154.11,0.000463,5]
[321182131,1711951840413,-154.11,0.000463,5]
[321182132,1711951840424,-170.75,0.00046324,2]
[321182133,1711951840436,-774.45,0.00046398,120]
[321182134,1711951840447,-170.75,0.00046449,2]
[321182135,1711951840457,-170.75,0.00046574,2]
[321182136,1711951840468,-170.75,0.00046699,2]
[321182137,1711951840479,-170.75,0.00046824,2]
[321182138,1711951840489,-170.75,0.00046949,2]
[321182139,1711951840499,-170.75,0.00047074,2]
[321182140,1711951840510,-170.75,0.00047199,2]
[321182141,1711951840522,-170.75,0.00047324,2]
[321182142,1711951840533,-170.75,0.00047449,2]
[321182143,1711951840543,-4876.80276876,0.00047493,2]
[321182144,1711951840552,-2663.61287479,0.00047493,2]
[321182145,1711951840567,-156.96,0.00047532,15]
[321182146,1711951840577,-170.75,0.00047574,2]
[321182147,1711951840586,-343.09,0.00047646,2]
[321182148,1711951840595,-170.75,0.00047699,2]
[321182149,1711951840605,-170.75,0.00047824,2]
[321182150,1711951840615,-172.73,0.0004788,2]
[321182151,1711951840624,-170.75,0.00047949,2]
[321182152,1711951840632,-151.0,0.00048,120]
[321182153,1711951840641,-736.6,0.00048055,2]
[321182154,1711951840651,-2782.16375663,0.00048119,7]
[321182155,1711951840665,-1000.0,0.00049315,60]
[321182156,1711951840677,-9317.42038459,0.0004949,10]
[321182157,1711951840688,-1234.42,0.00049599,10]
[321182158,1711951840700,-2155.04,0.00049599,10]
[321182159,1711951840712,-1795.87,0.00049599,10]
[321182160,1711951840724,-1496.56,0.00049599,10]
[321182161,1711951840734,-1000.0,0.00049609,120]
[321182162,1711951840745,-25941.2241581,0.000498,60]
[321182163,1711951840756,-4876.80276876,0.00049837,2]
[321182164,1711951840768,-2663.61287479,0.00049837,2]
[321182165,1711951840780,-164.25729466,0.000499,14]
[321182166,1711951840792,-343.09,0.0004991,2]
[321182167,1711951840804,-151.0,0.0005,120]
[321182168,1711951840820,-40541.86256222,0.0005,14]
[321182169,1711951840832,-318.08952194,0.0005,120]
[321182170,1711951840843,-260.0,0.0005,120]
[321182171,1711951840854,-1000.0,0.00050136,64]
[321182172,1711951840866,-156.96,0.00050271,120]
[321182173,1711951840877,-169.89,0.00050277,2]
[321182174,1711951840888,-736.6,0.00050795,2]
[321182175,1711951840898,-1000.0,0.00050958,68]
[321182176,1711951840910,-260.0,0.00051,120]
[321182177,1711951840922,-154.11,0.000511,6]
[321182178,1711951840934,-154.11,0.000511,6]
[321182179,1711951840946,-1000.0,0.0005178,72]
[321182180,1711951840957,-260.0,0.00052,120]
[321182181,1711951840969,-7024.54751301,0.00052,3]
[321182182,1711951840981,-809.68874152,0.00052,90]
[321182183,1711951840993,-343.09,0.00052174,2]
[321182184,1711951841005,-4876.80276876,0.00052181,2]
[321182185,1711951841018,-2663.61287479,0.00052181,2]
[321182186,1711951841028,-172.73,0.00052472,2]
[321182187,1711951841039,-1000.0,0.00052602,120]
[321182188,1711951841050,-4500.0,0.000528,120]
[321182189,1711951841066,-232.19051531,0.000529,30]
[321182190,1711951841080,-568.97026932,0.00053,2]
[321182191,1711951841091,-727.0,0.00053,30]
[321182192,1711951841104,-500.0,0.00053,30]
[321182193,1711951841117,-785.0,0.00053,30]
[321182194,1711951841128,-260.0,0.00053,120]
[321182195,1711951841140,-156.96,0.00053011,120]
[321182196,1711951841153,-156.19,0.00053066,2]
[321182197,1711951841165,-206.53138831,0.000532,120]
[321182198,1711951841176,-151.0,0.0005326,120]
[321182199,1711951841188,-288.62413497,0.00053262,120]
[321182200,1711951841200,-441.21894054,0.0005331,2]
[321182201,1711951841215,-186.58,0.00053424,120]
[321182202,1711951841227,-52944.94886344,0.00053998,120]
[321182203,1711951841240,-2513.56908645,0.00053998,2]
[321182204,1711951841253,-388.23259281,0.00053999,30]
[321182205,1711951841267,-195878.00515175,0.00054,2]
[321182206,1711951841280,-208609.83925127,0.00054,2]
[321182207,1711951841292,-303.23269139,0.00054,120]
[321182208,1711951841305,-184.49083737,0.00054,120]
[321182209,1711951841322,-260.0,0.00054,120]
[321182210,1711951841336,-279.9,0.00054079,120]
[321182211,1711951841346,-200.88891733,0.000543,120]
[321182212,1711951841355,-156.1,0.00054338,2]
[321182213,1711951841365,-343.09,0.00054438,2]
[321182214,1711951841375,-4876.80276876,0.00054524,2]
[321182215,1711951841385,-2663.61287479,0.00054524,2]
[321182216,1711951841395,-1000.0,0.0005457,120]
[321182217,1711951841409,-500.0,0.00054794,120]
[321182218,1711951841422,-500.0,0.00054794,120]
[321182219,1711951841432,-500.0,0.00054794,120]
[321182220,1711951841443,-500.0,0.00054794,120]
[321182221,1711951841454,-500.0,0.00054794,120]
[321182222,1711951841467,-532.65023629,0.00054794,120]
[321182223,1711951841478,-500.0,0.00054794,120]
[321182224,1711951841490,-519.88461818,0.00054794,120]
[321182225,1711951841502,-500.0,0.00054794,120]
[321182226,1711951841512,-500.0,0.00054794,120]
[321182227,1711951841524,-500.0,0.00054794,120]
[321182228,1711951841535,-500.0,0.00054794,120]
[321182229,1711951841547,-500.0,0.00054794,120]
[321182230,1711951841562,-500.0,0.00054794,120]
[321182231,1711951841573,-500.0,0.00054794,120]
[321182232,1711951841584,-500.0,0.00054794,120]
[321182233,1711951841596,-500.0,0.00054794,120]
[321182234,1711951841607,-500.0,0.00054794,120]
[321182235,1711951841619,-500.0,0.00054794,120]
[321182236,1711951841630,-500.0,0.00054794,120]
[321182237,1711951841641,-500.0,0.00054794,120]
[321182238,1711951841653,-500.0,0.00054794,120]
[321182239,1711951841664,-500.0,0.00054794,120]
[321182240,1711951841675,-500.0,0.00054794,120]
[321182241,1711951841686,-500.0,0.00054794,120]
[321182242,1711951841698,-500.0,0.00054794,120]
[321182243,1711951841709,-500.0,0.00054794,120]
[321182244,1711951841720,-500.0,0.00054794,120]
[321182245,1711951841732,-500.0,0.00054794,120]
[321182246,1711951841743,-587.508535,0.00054794,120]
[321182247,1711951841753,-500.0,0.00054794,120]
[321182248,1711951841765,-500.0,0.00054794,120]
[321182249,1711951841778,-500.0,0.00054794,120]
[321182250,1711951841789,-500.0,0.00054794,120]
[321182251,1711951841801,-500.0,0.00054794,120]
[321182252,1711951841816,-500.0,0.00054794,120]
[321182253,1711951841828,-500.0,0.00054794,120]
[321182254,1711951841838,-500.0,0.00054794,120]
[321182255,1711951841849,-500.0,0.00054794,120]
[321182256,1711951841860,-500.0,0.00054794,120]
[321182257,1711951841870,-500.0,0.00054794,120]
[321182258,1711951841881,-500.0,0.00054794,120]
[321182259,1711951841891,-500.0,0.00054794,120]
[321182260,1711951841902,-500.0,0.00054794,120]
[321182261,1711951841913,-394.89012985,0.00054794,120]
[321182262,1711951841923,-364.29588622,0.00054794,120]
[321182263,1711951841934,-500.0,0.00054794,30]
[321182264,1711951841944,-500.0,0.00054794,120]
[321182265,1711951841956,-500.0,0.00054794,120]
[321182266,1711951841967,-500.0,0.00054794,120]
[321182267,1711951841977,-296.67222256,0.00054794,120]
[321182268,1711951841988,-500.0,0.00054794,120]
[321182269,1711951841999,-500.0,0.00054794,120]
[321182270,1711951842010,-500.0,0.00054794,120]
[321182271,1711951842021,-620.46563312,0.00054794,120]
[321182272,1711951842032,-500.0,0.00054794,120]
[321182273,1711951842043,-415.40092809,0.00054794,120]
[321182274,1711951842054,-464.37718227,0.00054794,120]
[321182275,1711951842069,-500.0,0.00054794,30]
[321182276,1711951842080,-521.28051874,0.00054794,120]